fUST/lending_fUST_20240121
["ID","MTS","AMOUNT","RATE_DAILY","PERIOD"]
[312343484,1705804247455,-503.24194096,0.0003041,2]
[312343485,1705804247464,-707.13,0.0003041,2]
[312343486,1705804247473,-500.0,0.0003041,2]
[312343487,1705804247482,-500.0,0.0003041,2]
[312343488,1705804247492,-515.34139418,0.0003041,2]
[312343489,1705804247501,-504.36863832,0.0003041,2]
[312343490,1705804247510,-501.25550723,0.0003041,2]
[312343491,1705804247519,-335.79645869,0.0003041,2]
[312343492,1705804247528,-532.50876823,0.0003041,2]
[312343493,1705804247538,-730.31,0.0003041,2]
[312343494,1705804247548,-504.03597928,0.0003041,2]
[312343495,1705804247557,-500.0,0.0003041,2]
[312343496,1705804247566,-704.33,0.0003041,2]
[312343497,1705804247575,-500.85348377,0.0003041,2]
[312343498,1705804247585,-500.0,0.0003041,2]
[312343499,1705804247594,-500.4458244,0.0003041,2]
[312343500,1705804247603,-500.32661163,0.0003041,2]
[312343501,1705804247613,-500.0,0.0003041,2]
[312343502,1705804247622,-500.0,0.0003041,2]
[312343503,1705804247632,-501.49584518,0.0003041,2]
[312343504,1705804247641,-500.0,0.0003041,2]
[312343505,1705804247651,-500.0,0.0003041,2]
[312343506,1705804247666,-10018.48398771,0.0003041,10]
[312343507,1705804247675,-500.0,0.0003041,2]
[312343508,1705804247684,-745.35,0.0003041,2]
[312343509,1705804247694,-500.0,0.0003041,2]
[312343510,1705804247703,-998.80844291,0.0003041,2]
[312343511,1705804247712,-500.0,0.0003041,2]
[312343512,1705804247722,-500.0,0.0003041,2]
[312343513,1705804247819,-716.14,0.0003041,2]
[312343514,1705804247831,-1216.48,0.0003041,2]
[312343515,1705804247841,-500.0,0.0003041,2]
[312343516,1705804247850,-500.0,0.0003041,2]
[312343517,1705804247860,-504.24365208,0.0003041,2]
[312343518,1705804247869,-502.17254469,0.0003041,2]
[312343519,1705804247879,-503.90362874,0.0003041,2]
[312343520,1705804247889,-500.0,0.0003041,2]
[312343521,1705804247899,-500.0,0.0003041,2]
[312343522,1705804247909,-500.0,0.0003041,2]
[312343523,1705804247918,-500.0,0.0003041,2]
[312343524,1705804247927,-593.86,0.0003041,2]
[312343525,1705804247936,-500.0,0.0003041,2]
[312343526,1705804247946,-500.0,0.0003041,2]
[312343527,1705804247955,-501.78466659,0.0003041,2]
[312343528,1705804247964,-500.0,0.0003041,2]
[312343529,1705804247973,-500.0,0.0003041,7]
[312343530,1705804247982,-544.65,0.0003041,2]
[312343531,1705804247991,-1003.97447176,0.0003041,5]
[312343532,1705804248001,-500.0,0.0003041,2]
[312343533,1705804248010,-500.96434093,0.0003041,2]
[312343535,1705804248019,-950.15,0.0003041,2]
[312343537,1705804248028,-500.42835523,0.0003041,2]
[312343538,1705804248037,-730.6,0.0003041,2]
[312343540,1705804248047,-500.0,0.0003041,2]
[312343541,1705804248056,-2439.78,0.0003041,2]
[312343542,1705804248066,-500.0,0.0003041,2]
[312343543,1705804248075,-432.53006519,0.0003041,2]
[312343544,1705804248085,-500.0,0.0003041,2]
[312343546,1705804248095,-379.75033587,0.0003041,2]
[312343547,1705804248104,-500.0,0.0003041,2]
[312343549,1705804248114,-500.0,0.0003041,2]
[312343551,1705804248123,-500.0,0.0003041,2]
[312343552,1705804248132,-3321.44,0.0003041,2]
[312343554,1705804248142,-300.67494007,0.0003041,2]
[312343555,1705804248152,-500.0,0.0003041,2]
[312343556,1705804248161,-630.89408536,0.0003041,2]
[312343558,1705804248171,-1000.0,0.0003041,2]
[312343560,1705804248180,-500.0,0.0003041,2]
[312343562,1705804248189,-500.0,0.0003041,2]
[312343563,1705804248198,-500.0,0.0003041,2]
[312343565,1705804248208,-500.49790983,0.0003041,2]
[312343566,1705804248217,-626.70192527,0.0003041,2]
[312343567,1705804248227,-502.74317768,0.0003041,2]
[312343568,1705804248236,-500.0,0.0003041,2]
[312343569,1705804248245,-500.0,0.0003041,2]
[312343570,1705804248255,-1699.49,0.0003041,2]
[312343571,1705804248264,-500.0,0.0003041,2]
[312343572,1705804248273,-500.0,0.0003041,2]
[312343573,1705804248283,-500.0,0.0003041,2]
[312343574,1705804248292,-501.33587297,0.0003041,2]
[312343575,1705804248302,-500.0,0.0003041,2]
[312343576,1705804248312,-501.37796505,0.0003041,2]
[312343577,1705804248321,-500.0,0.0003041,2]
[312343578,1705804248331,-500.29208664,0.0003041,2]
[312343579,1705804248341,-500.0,0.0003041,2]
[312343580,1705804248351,-500.0,0.0003041,2]
[312343581,1705804248360,-501.44667946,0.0003041,2]
[312343582,1705804248370,-500.0,0.0003041,2]
[312343583,1705804248379,-500.82235622,0.0003041,2]
[312343584,1705804248389,-500.0,0.0003041,2]
[312343585,1705804248398,-1131.27,0.0003041,2]
[312343586,1705804248408,-500.0,0.0003041,2]
[312343587,1705804248417,-500.59354776,0.0003041,2]
[312343588,1705804248427,-500.0,0.0003041,2]
[312343589,1705804248436,-550.59287802,0.0003041,2]
[312343590,1705804248445,-220.0,0.0003041,2]
[312343591,1705804248455,-500.0,0.0003041,2]
[312343592,1705804248465,-335.16007594,0.0003041,2]
[312343593,1705804248474,-430.23740903,0.0003041,2]
[312343594,1705804248483,-633.69735015,0.0003041,2]
[312343595,1705804248493,-500.0,0.0003041,2]
[312343596,1705804248502,-1634.2,0.0003041,2]
[312343597,1705804248511,-500.0,0.0003041,2]
[312343598,1705804248520,-523.29,0.0003041,2]
[312343599,1705804248530,-501.90194518,0.0003041,2]
[312343600,1705804248539,-501.82444783,0.0003041,2]
[312343601,1705804248549,-500.0,0.0003041,2]
[312343602,1705804248559,-849.47,0.0003041,2]
[312343603,1705804248568,-535.61395288,0.0003041,2]
[312343604,1705804248577,-858.39,0.0003041,2]
[312343605,1705804248586,-909.28,0.0003041,2]
[312343606,1705804248595,-500.0,0.0003041,2]
[312343607,1705804248605,-936.38,0.0003041,2]
[312343608,1705804248614,-500.0,0.0003041,2]
[312343609,1705804248624,-500.0,0.0003041,2]
[312343610,1705804248633,-763.2,0.0003041,2]
[312343611,1705804248642,-503.03597307,0.0003041,2]
[312343612,1705804248652,-500.0,0.0003041,2]
[312343613,1705804248666,-1518.96,0.0003041,2]
[312343614,1705804248676,-202.59641544,0.0003041,2]
[312343615,1705804248685,-992.59,0.0003041,2]
[312343616,1705804248695,-500.0,0.0003041,2]
[312343617,1705804248704,-2702.41,0.0003041,2]
[312343618,1705804248714,-1007.33,0.0003041,2]
[312343619,1705804248724,-739.04,0.0003041,2]
[312343620,1705804248733,-505.49870955,0.0003041,2]
[312343621,1705804248744,-827.46,0.0003041,2]
[312343622,1705804248753,-502.39311687,0.0003041,2]
[312343623,1705804248763,-500.0,0.0003041,2]
[312343624,1705804248773,-500.0,0.0003041,2]
[312343625,1705804248782,-500.0,0.0003041,2]
[312343626,1705804248792,-500.0,0.0003041,2]
[312343627,1705804248801,-500.0,0.0003041,2]
[312343628,1705804248811,-2297.91,0.0003041,2]
[312343629,1705804248820,-1389.68,0.0003041,2]
[312343630,1705804248830,-500.0,0.0003041,2]
[312343631,1705804248839,-500.0,0.0003041,2]
[312343632,1705804248848,-500.0,0.0003041,2]
[312343633,1705804248858,-617.22,0.0003041,2]
[312343634,1705804248867,-28045.32,0.0003041,2]
[312343635,1705804248877,-500.0,0.0003041,2]
[312343636,1705804248886,-500.17407216,0.0003041,2]
[312343637,1705804248896,-2205.96,0.0003041,2]
[312343638,1705804248905,-394.82878755,0.0003041,2]
[312343639,1705804248914,-6455.87,0.0003041,2]
[312343640,1705804248923,-500.0,0.0003041,2]
[312343641,1705804248932,-500.0,0.0003041,2]
[312343642,1705804248941,-198.27753364,0.0003041,2]
[312343643,1705804248950,-500.0,0.0003041,2]
[312343644,1705804248960,-500.0,0.0003041,2]
[312343645,1705804248969,-500.0,0.0003041,2]
[312343646,1705804248978,-1168.22,0.0003041,2]
[312343647,1705804248987,-500.0,0.0003041,2]
[312343648,1705804248996,-500.0,0.0003041,2]
[312343649,1705804249006,-501.49602513,0.0003041,2]
[312343650,1705804249015,-509.63,0.0003041,2]
[312343651,1705804249024,-505.72168151,0.0003041,2]
[312343652,1705804249033,-500.0,0.0003041,2]
[312343653,1705804249042,-503.75336205,0.0003041,2]
[312343654,1705804249051,-1456.84,0.0003041,2]
[312343655,1705804249060,-500.0,0.0003041,2]
[312343656,1705804249070,-226.41582481,0.0003041,2]
[312343657,1705804249079,-500.0,0.0003041,2]
[312343658,1705804249088,-502.52181998,0.0003041,2]
[312343659,1705804249097,-9762.94,0.0003041,2]
[312343660,1705804249106,-500.0,0.0003041,2]
[312343661,1705804249115,-500.0,0.0003041,2]
[312343662,1705804249124,-503.30193575,0.0003041,2]
[312343663,1705804249133,-1357.4,0.0003041,2]
[312343664,1705804249143,-538.02736512,0.0003041,2]
[312343665,1705804249152,-500.0,0.0003041,2]
[312343666,1705804249161,-226.82519539,0.0003041,2]
[312343667,1705804249170,-500.0,0.0003041,2]
[312343668,1705804249180,-3282.85,0.0003041,2]
[312343669,1705804249190,-16364.87,0.0003041,2]
[312343670,1705804249198,-500.0,0.0003041,2]
[312343671,1705804249208,-500.0,0.0003041,2]
[312343672,1705804249217,-500.0,0.0003041,2]
[312343673,1705804249226,-521.65662967,0.0003041,2]
[312343674,1705804249235,-500.0,0.0003041,2]
[312343675,1705804249244,-1247.45,0.0003041,2]
[312343676,1705804249253,-297.22570451,0.0003041,2]
[312343677,1705804249262,-517.25030731,0.0003041,2]
[312343678,1705804249273,-8946.16,0.0003041,2]
[312343679,1705804249282,-549.85013695,0.0003041,2]
[312343680,1705804249290,-459.32992208,0.0003041,2]
[312343681,1705804249299,-1251.27,0.0003041,2]
[312343682,1705804249308,-500.0,0.0003041,2]
[312343683,1705804249317,-500.0,0.0003041,2]
[312343684,1705804249326,-500.0,0.0003041,2]
[312343685,1705804249335,-500.0,0.0003041,2]
[312343686,1705804249344,-1134.91,0.0003041,2]
[312343687,1705804249353,-533.50968731,0.0003041,2]
[312343688,1705804249361,-500.0,0.0003041,2]
[312343689,1705804249370,-2475.04,0.0003041,2]
[312343690,1705804249379,-6222.0,0.0003041,2]
[312343691,1705804249387,-500.0,0.0003041,2]
[312343692,1705804249396,-507.46673597,0.0003041,2]
[312343693,1705804249405,-500.0,0.0003041,2]
[312343694,1705804249413,-512.02,0.0003041,2]
[312343695,1705804249422,-513.90665913,0.0003041,2]
[312343696,1705804249431,-500.74589736,0.0003041,2]
[312343697,1705804249439,-500.0,0.0003041,2]
[312343698,1705804249448,-500.0,0.0003041,2]
[312343699,1705804249456,-500.0,0.0003041,2]
[312343700,1705804249465,-8892.79,0.0003041,2]
[312343701,1705804249474,-1000.0,0.0003041,2]
[312343702,1705804249482,-199.98845757,0.0003041,2]
[312343703,1705804249490,-500.0,0.0003041,2]
[312343704,1705804249499,-500.0,0.0003041,2]
[312343705,1705804249590,-500.0,0.0003041,2]
[312343706,1705804249599,-500.0,0.0003041,2]
[312343707,1705804249608,-500.0,0.0003041,2]
[312343708,1705804249617,-500.0,0.0003041,2]
[312343709,1705804249625,-2386.41,0.0003041,2]
[312343710,1705804249634,-500.0,0.0003041,2]
[312343711,1705804249642,-500.0,0.0003041,2]
[312343712,1705804249652,-1658.71,0.0003041,2]
[312343713,1705804249665,-500.0,0.0003041,2]
[312343714,1705804249674,-500.0,0.0003041,2]
[312343715,1705804249682,-883.01,0.0003041,2]
[312343716,1705804249691,-500.0,0.0003041,2]
[312343717,1705804249700,-500.0,0.0003041,2]
[312343718,1705804249709,-500.0,0.0003041,2]
[312343719,1705804249717,-500.0,0.0003041,2]
[312343720,1705804249727,-500.63732243,0.0003041,2]
[312343721,1705804249736,-500.0,0.0003041,2]
[312343722,1705804249745,-415.03975167,0.0003041,2]
[312343723,1705804249755,-500.0,0.0003041,2]
[312343724,1705804249764,-500.0,0.0003041,2]
[312343725,1705804249773,-500.0,0.0003041,2]
[312343726,1705804249782,-1168.08,0.0003041,2]
[312343727,1705804249792,-500.0,0.0003041,2]
[312343728,1705804249801,-500.0,0.0003041,2]
[312343729,1705804249811,-603.96698279,0.0003041,2]
[312343730,1705804249820,-500.0,0.0003041,2]
[312343731,1705804249829,-500.0,0.0003041,2]
[312343732,1705804249838,-500.0,0.0003041,2]
[312343733,1705804249846,-1669.28,0.0003041,2]
[312343734,1705804249855,-1398.43,0.0003041,2]
[312343735,1705804249864,-500.0,0.0003041,2]
[312343736,1705804249873,-500.0,0.0003041,2]
[312343737,1705804249883,-500.0,0.0003041,2]
[312343738,1705804249892,-685.83,0.0003041,2]
[312343739,1705804249901,-500.0,0.0003041,2]
[312343740,1705804249910,-506.02688792,0.0003041,2]
[312343741,1705804249920,-500.0,0.0003041,2]
[312343742,1705804249928,-500.0,0.0003041,2]
[312343743,1705804249938,-545.75,0.0003041,2]
[312343744,1705804249947,-500.0,0.0003041,2]
[312343745,1705804249955,-1242.73,0.0003041,2]
[312343746,1705804249964,-1931.87,0.0003041,2]
[312343747,1705804249973,-500.0,0.0003041,2]
[312343748,1705804249982,-500.0,0.0003041,2]
[312343749,1705804249991,-500.0,0.0003041,2]
[312343750,1705804250001,-500.0,0.0003041,2]
[312343751,1705804250010,-500.0,0.0003041,2]
[312343752,1705804250019,-181.80575,0.0003041,2]
[312343753,1705804250028,-181.80575,0.0003041,2]
[312343754,1705804250037,-181.80575,0.0003041,2]
[312343755,1705804250046,-181.80575,0.0003041,2]
[312343756,1705804250054,-181.80575,0.0003041,2]
[312343757,1705804250063,-181.80575,0.0003041,2]
[312343758,1705804250072,-181.80575,0.0003041,2]
[312343759,1705804250081,-181.80575,0.0003041,2]
[312343760,1705804250090,-181.80575,0.0003041,2]
[312343761,1705804250099,-181.80575,0.0003041,2]
[312343762,1705804250108,-181.80575,0.0003041,2]
[312343763,1705804250118,-181.805744,0.0003041,2]
[312343764,1705804250127,-151.075459,0.0003041,2]
[312343765,1705804250136,-151.075459,0.0003041,2]
[312343766,1705804250145,-151.075459,0.0003041,2]
[312343767,1705804250153,-151.075459,0.0003041,2]
[312343768,1705804250162,-151.075459,0.0003041,2]
[312343769,1705804250172,-151.075459,0.0003041,2]
[312343770,1705804250181,-151.075459,0.0003041,2]
[312343771,1705804250190,-151.075451,0.0003041,2]
[312343772,1705804250199,-5886.456242,0.0003041,2]
[312343773,1705804250208,-5886.456242,0.0003041,2]
[312343774,1705804250218,-5886.456242,0.0003041,2]
[312343775,1705804250227,-5886.456242,0.0003041,2]
[312343776,1705804250236,-5886.456242,0.0003041,2]
[312343777,1705804250245,-5886.456242,0.0003041,2]
[312343778,1705804250254,-5886.456242,0.0003041,2]
[312343779,1705804250263,-5886.456238,0.0003041,2]
[312343780,1705804250272,-4389.091928,0.0003041,2]
[312343781,1705804250282,-4389.091928,0.0003041,2]
[312343782,1705804250291,-4389.091928,0.0003041,2]
[312343783,1705804250300,-4389.091931,0.0003041,2]
[312343784,1705804250309,-247.83739649,0.000305,2]
[312343785,1705804250319,-155.0,0.00030506,2]
[312343786,1705804250328,-170.192377,0.00030528,2]
[312343787,1705804250336,-277.49,0.0003068,30]
[312343788,1705804250345,-1339.6,0.00030683,2]
[312343789,1705804250354,-1339.6,0.00030683,2]
[312343790,1705804250363,-1339.6,0.00030683,2]
[312343791,1705804250372,-1339.6,0.00030683,2]
[312343792,1705804250381,-200.0,0.00030684,2]
[312343793,1705804250391,-500.0,0.00030684,2]
[312343794,1705804250400,-500.0,0.00030684,2]
[312343795,1705804250409,-500.0,0.00030684,2]
[312343796,1705804250418,-500.0,0.00030684,2]
[312343797,1705804250427,-500.0,0.00030684,2]
[312343798,1705804250436,-500.0,0.00030684,2]
[312343799,1705804250445,-487.46844157,0.00030684,2]
[312343800,1705804250454,-738.79,0.00030684,2]
[312343801,1705804250463,-500.0,0.00030684,2]
[312343802,1705804250472,-500.0,0.00030684,2]
[312343803,1705804250481,-500.0,0.00030684,2]
[312343804,1705804250491,-500.0,0.00030684,2]
[312343805,1705804250500,-500.0,0.00030684,2]
[312343806,1705804250509,-471.89647136,0.00030684,2]
[312343807,1705804250518,-500.0,0.00030684,2]
[312343808,1705804250527,-500.0,0.00030684,2]
[312343809,1705804250536,-500.0,0.00030684,2]
[312343810,1705804250545,-847.4,0.00030684,2]
[312343811,1705804250554,-500.0,0.00030684,2]
[312343812,1705804250565,-500.0,0.00030684,2]
[312343813,1705804250574,-500.0,0.00030684,2]
[312343814,1705804250583,-522.09,0.00030684,2]
[312343815,1705804250592,-500.0,0.00030684,2]
[312343816,1705804250601,-355.36602426,0.00030684,2]
[312343817,1705804250610,-190.43450441,0.00030684,2]
[312343818,1705804250620,-500.0,0.00030684,2]
[312343819,1705804250629,-500.0,0.00030684,2]
[312343820,1705804250640,-500.0,0.00030684,2]
[312343821,1705804250650,-500.0,0.00030684,2]
[312343822,1705804250663,-500.0,0.00030684,2]
[312343823,1705804250672,-646.16,0.00030684,2]
[312343824,1705804250682,-500.0,0.00030684,2]
[312343825,1705804250691,-500.0,0.00030684,2]
[312343826,1705804250700,-500.0,0.00030684,2]
[312343827,1705804250709,-1000.0,0.00030684,2]
[312343828,1705804250719,-500.0,0.00030684,2]
[312343829,1705804250728,-500.0,0.00030684,2]
[312343830,1705804250739,-500.0,0.00030684,2]
[312343831,1705804250749,-454.40419699,0.00030684,2]
[312343832,1705804250758,-500.0,0.00030684,2]
[312343833,1705804250768,-721.39,0.00030684,2]
[312343834,1705804250777,-500.0,0.00030684,2]
[312343835,1705804250787,-500.0,0.00030684,2]
[312343836,1705804250797,-500.0,0.00030684,2]
[312343837,1705804250806,-625.7,0.00030684,2]
[312343838,1705804250815,-500.0,0.00030684,2]
[312343839,1705804250824,-500.0,0.00030684,2]
[312343840,1705804250833,-500.0,0.00030684,2]
[312343841,1705804250842,-500.0,0.00030684,14]
[312343842,1705804250851,-701.62,0.00030684,2]
[312343843,1705804250860,-781.93,0.00030684,2]
[312343844,1705804250869,-401.15620264,0.00030684,2]
[312343845,1705804250878,-500.0,0.00030684,2]
[312343846,1705804250887,-200.0,0.00030684,2]
[312343847,1705804250896,-500.0,0.00030684,2]
[312343848,1705804250905,-633.96649337,0.00030684,2]
[312343849,1705804250914,-500.0,0.00030684,2]
[312343850,1705804250924,-715.02,0.00030684,2]
[312343851,1705804250934,-500.0,0.00030684,2]
[312343852,1705804250942,-1000.0,0.00030684,2]
[312343853,1705804250951,-500.0,0.00030684,2]
[312343854,1705804250960,-500.0,0.00030684,2]
[312343855,1705804250969,-1450.97,0.00030684,2]
[312343856,1705804250979,-500.0,0.00030684,2]
[312343857,1705804250988,-544.74,0.00030684,2]
[312343858,1705804250997,-213.23258285,0.00030684,2]
[312343859,1705804251006,-500.0,0.00030684,2]
[312343860,1705804251015,-500.0,0.00030684,2]
[312343861,1705804251025,-500.0,0.00030684,2]
[312343862,1705804251034,-500.0,0.00030684,2]
[312343863,1705804251043,-500.0,0.00030684,2]
[312343864,1705804251052,-500.0,0.00030684,2]
[312343865,1705804251063,-500.0,0.00030684,2]
[312343866,1705804251072,-500.0,0.00030684,2]
[312343867,1705804251082,-594.17560371,0.00030684,2]
[312343868,1705804251091,-500.0,0.00030684,2]
[312343869,1705804251100,-520.63,0.00030684,2]
[312343870,1705804251109,-535.2426051,0.00030684,2]
[312343871,1705804251118,-500.0,0.00030684,2]
[312343872,1705804251205,-500.0,0.00030684,2]
[312343873,1705804251214,-529.72,0.00030684,2]
[312343874,1705804251224,-500.0,0.00030684,2]
[312343875,1705804251233,-500.0,0.00030684,2]
[312343876,1705804251242,-714.99,0.00030684,2]
[312343877,1705804251251,-500.0,0.00030684,2]
[312343878,1705804251260,-1000.0,0.00030684,2]
[312343879,1705804251269,-500.0,0.00030684,2]
[312343880,1705804251278,-500.0,0.00030684,2]
[312343881,1705804251287,-500.0,0.00030684,2]
[312343882,1705804251297,-411.14263646,0.00030684,2]
[312343883,1705804251306,-500.0,0.00030684,2]
[312343884,1705804251315,-150.0,0.00030684,2]
[312343885,1705804251324,-215.13409114,0.00030684,2]
[312343886,1705804251333,-501.21615261,0.00030684,2]
[312343887,1705804251343,-500.0,0.00030684,2]
[312343888,1705804251351,-707.13,0.00030684,2]
[312343889,1705804251361,-503.3727828,0.00030684,2]
[312343890,1705804251370,-500.0,0.00030684,2]
[312343891,1705804251380,-730.31,0.00030684,2]
[312343892,1705804251389,-704.33,0.00030684,2]
[312343893,1705804251398,-539.51631293,0.00030684,2]
[312343894,1705804251408,-500.0,0.00030684,2]
[312343895,1705804251417,-500.0,0.00030684,2]
[312343896,1705804251426,-500.0,0.00030684,2]
[312343897,1705804251436,-500.0,0.00030684,2]
[312343898,1705804251446,-500.0,0.00030684,2]
[312343899,1705804251455,-745.35,0.00030684,2]
[312343900,1705804251465,-500.0,0.00030684,2]
[312343901,1705804251474,-298.05207015,0.00030684,2]
[312343902,1705804251483,-500.0,0.00030684,2]
[312343903,1705804251492,-716.14,0.00030684,2]
[312343904,1705804251501,-1216.48,0.00030684,2]
[312343905,1705804251511,-500.0,0.00030684,2]
[312343906,1705804251519,-500.0,0.00030684,2]
[312343907,1705804251529,-500.0,0.00030684,2]
[312343908,1705804251538,-500.0,0.00030684,2]
[312343909,1705804251547,-500.0,0.00030684,2]
[312343910,1705804251556,-500.0,0.00030684,2]
[312343911,1705804251566,-524.23336477,0.00030684,2]
[312343912,1705804251575,-593.86,0.00030684,2]
[312343913,1705804251584,-500.0,0.00030684,2]
[312343914,1705804251594,-501.52704151,0.00030684,2]
[312343915,1705804251604,-500.0,0.00030684,7]
[312343916,1705804251613,-544.65,0.00030684,2]
[312343917,1705804251623,-500.0,0.00030684,2]
[312343918,1705804251633,-950.15,0.00030684,2]
[312343919,1705804251642,-730.6,0.00030684,2]
[312343920,1705804251652,-500.0,0.00030684,2]
[312343921,1705804251666,-2439.78,0.00030684,2]
[312343922,1705804251675,-500.0,0.00030684,2]
[312343923,1705804251684,-500.0,0.00030684,2]
[312343924,1705804251694,-502.08848688,0.00030684,2]
[312343925,1705804251703,-500.0,0.00030684,2]
[312343926,1705804251713,-500.0,0.00030684,2]
[312343927,1705804251722,-3321.44,0.00030684,2]
[312343928,1705804251731,-390.67432736,0.00030684,2]
[312343929,1705804251741,-1000.0,0.00030684,2]
[312343930,1705804251751,-500.0,0.00030684,2]
[312343931,1705804251760,-500.0,0.00030684,2]
[312343932,1705804251770,-500.0,0.00030684,2]
[312343933,1705804251779,-500.0,0.00030684,2]
[312343934,1705804251788,-500.67327794,0.00030684,2]
[312343935,1705804251799,-1699.49,0.00030684,2]
[312343936,1705804251809,-500.0,0.00030684,2]
[312343937,1705804251818,-271.28757262,0.00030684,2]
[312343938,1705804251828,-221.60056194,0.00030684,2]
[312343939,1705804251838,-500.0,0.00030684,2]
[312343940,1705804251847,-435.70729234,0.00030684,2]
[312343941,1705804251856,-500.0,0.00030684,2]
[312343942,1705804251865,-500.0,0.00030684,2]
[312343943,1705804251874,-500.0,0.00030684,2]
[312343944,1705804251884,-500.0,0.00030684,2]
[312343945,1705804251893,-1131.27,0.00030684,2]
[312343946,1705804251902,-500.0,0.00030684,2]
[312343947,1705804251913,-500.0,0.00030684,2]
[312343948,1705804251922,-220.0,0.00030684,2]
[312343949,1705804251932,-500.0,0.00030684,2]
[312343950,1705804251941,-500.0,0.00030684,2]
[312343951,1705804251950,-1634.2,0.00030684,2]
[312343952,1705804251958,-500.0,0.00030684,2]
[312343953,1705804251967,-523.29,0.00030684,2]
[312343954,1705804251977,-243.153522,0.00030684,2]
[312343955,1705804251988,-849.47,0.00030684,2]
[312343956,1705804251998,-858.39,0.00030684,2]
[312343957,1705804252007,-909.28,0.00030684,2]
[312343958,1705804252016,-501.70341618,0.00030684,2]
[312343959,1705804252025,-936.38,0.00030684,2]
[312343960,1705804252034,-500.0,0.00030684,2]
[312343961,1705804252045,-500.0,0.00030684,2]
[312343962,1705804252054,-763.2,0.00030684,2]
[312343963,1705804252063,-500.0,0.00030684,2]
[312343964,1705804252072,-1518.96,0.00030684,2]
[312343965,1705804252081,-992.59,0.00030684,2]
[312343966,1705804252091,-500.0,0.00030684,2]
[312343967,1705804252100,-2702.41,0.00030684,2]
[312343968,1705804252108,-1007.33,0.00030684,2]
[312343969,1705804252118,-739.04,0.00030684,2]
[312343970,1705804252127,-827.46,0.00030684,2]
[312343971,1705804252136,-500.0,0.00030684,2]
[312343972,1705804252145,-500.0,0.00030684,2]
[312343973,1705804252154,-500.0,0.00030684,2]
[312343974,1705804252163,-500.0,0.00030684,2]
[312343975,1705804252172,-2297.91,0.00030684,2]
[312343976,1705804252181,-500.0,0.00030684,2]
[312343977,1705804252191,-1389.68,0.00030684,2]
[312343978,1705804252200,-519.36907296,0.00030684,2]
[312343979,1705804252209,-500.0,0.00030684,2]
[312343980,1705804252218,-500.0,0.00030684,2]
[312343981,1705804252227,-617.22,0.00030684,2]
[312343982,1705804252236,-28045.32,0.00030684,2]
[312343983,1705804252245,-645.05576383,0.00030684,2]
[312343984,1705804252253,-2205.96,0.00030684,2]
[312343985,1705804252262,-6455.87,0.00030684,2]
[312343986,1705804252271,-500.0,0.00030684,2]
[312343987,1705804252281,-500.0,0.00030684,2]
[312343988,1705804252291,-500.0,0.00030684,2]
[312343989,1705804252301,-500.0,0.00030684,2]
[312343990,1705804252311,-500.0,0.00030684,2]
[312343991,1705804252320,-1168.22,0.00030684,2]
[312343992,1705804252329,-501.98814183,0.00030684,2]
[312343993,1705804252338,-500.0,0.00030684,2]
[312343994,1705804252348,-509.63,0.00030684,2]